[Event "*** Titled Tuesday 3|2 Blitz"]
[Site "Chess.com"]
[Date "2016.01.05"]
[Round "8"]
[White "ChessSkool"]
[Black "nijat_a"]
[Result "0-1"]
[WhiteElo "2319"]
[BlackElo "2693"]
[TimeControl "180+2"]
[EndTime "12:38:13 PST"]
[Termination "nijat_a won by resignation"]

1. Nf3 {[%clk 0:01:06.7]} 1... c5 {[%clk 0:03:00.6]} 2. b3 {[%clk 0:01:05.6]}
2... Nc6 {[%clk 0:02:59.3]} 3. Bb2 {[%clk 0:01:05.4]} 3... d5 {[%clk 0:02:55.6]}
4. e3 {[%clk 0:01:04]} 4... Nf6 {[%clk 0:02:54.1]} 5. Bb5 {[%clk 0:01:04.2]}
5... Bd7 {[%clk 0:02:54.7]} 6. O-O {[%clk 0:01:03.5]} 6... g6 {[%clk 0:02:55.5]}
7. c4 {[%clk 0:01:02.3]} 7... dxc4 {[%clk 0:02:52.4]} 8. bxc4 {[%clk 0:01:02.2]}
8... Bg7 {[%clk 0:02:53.6]} 9. Bxc6 {[%clk 0:00:59.7]} 9... Bxc6 {[%clk
0:02:54.3]} 10. Ne5 {[%clk 0:01:01.1]} 10... Qb6 {[%clk 0:02:46.7]} 11. Qb3
{[%clk 0:00:58.2]} 11... Ng4 {[%clk 0:02:42.9]} 12. f4 {[%clk 0:00:47.4]} 12...
O-O {[%clk 0:02:39.7]} 13. Bc3 {[%clk 0:00:34.7]} 13... Nxe5 {[%clk 0:02:36.2]}
14. Bxe5 {[%clk 0:00:25.3]} 14... Bxe5 {[%clk 0:02:36.6]} 15. fxe5 {[%clk
0:00:27.2]} 15... Qc7 {[%clk 0:02:37.1]} 16. Qb2 {[%clk 0:00:22.9]} 16... Be4
{[%clk 0:02:34.3]} 17. Na3 {[%clk 0:00:22.1]} 17... Qb6 {[%clk 0:02:32.3]} 18.
Qc3 {[%clk 0:00:21]} 18... Rad8 {[%clk 0:02:30.7]} 19. Rf4 {[%clk 0:00:21.4]}
19... Rd3 {[%clk 0:02:29.8]} 20. Qc1 {[%clk 0:00:22.3]} 20... Bf5 {[%clk
0:02:29.8]} 21. g4 {[%clk 0:00:20.7]} 21... Be6 {[%clk 0:02:28.7]} 22. Rb1
{[%clk 0:00:20.5]} 22... Qa5 {[%clk 0:02:26.9]} 23. Rb3 {[%clk 0:00:14.3]} 23...
Rfd8 {[%clk 0:02:27.5]} 24. Rf2 {[%clk 0:00:13.2]} 24... Bxg4 {[%clk 0:02:22.6]}
25. Rxd3 {[%clk 0:00:11.7]} 25... Rxd3 {[%clk 0:02:22.8]} 26. Nb5 {[%clk
0:00:13.3]} 26... a6 {[%clk 0:02:17.7]} 27. Nc3 {[%clk 0:00:14]} 27... Be6
{[%clk 0:02:18.7]} 28. Ne4 {[%clk 0:00:13.5]} 28... Qb4 {[%clk 0:02:16.6]} 29.
Qf1 {[%clk 0:00:09.5]} 29... Qxc4 {[%clk 0:02:08.7]} 30. Nxc5 {[%clk 0:00:10]}
30... Ra3 {[%clk 0:01:54.4]} 31. Qxc4 {[%clk 0:00:07.6]} 31... Bxc4 {[%clk
0:01:55.2]} 32. Nxb7 {[%clk 0:00:08.7]} 32... Rxa2 {[%clk 0:01:54.2]} 33. Nc5
{[%clk 0:00:09.7]} 33... a5 {[%clk 0:01:53.1]} 34. d3 {[%clk 0:00:06.9]} 34...
Ra1+ {[%clk 0:01:47.6]} 35. Kg2 {[%clk 0:00:08.2]} 35... Be6 {[%clk 0:01:47]}
36. Kf3 {[%clk 0:00:07.1]} 36... a4 {[%clk 0:01:46.7]} 37. Ke4 {[%clk
0:00:07.1]} 37... Bf5+ {[%clk 0:01:46.1]} 38. Kd4 {[%clk 0:00:07.8]} 38... a3
{[%clk 0:01:47.3]} 39. e4 {[%clk 0:00:08.5]} 39... Bg4 {[%clk 0:01:47.6]} 40.
Nb3 {[%clk 0:00:07.7]} 40... Rb1 {[%clk 0:01:46.7]} 41. Kc3 {[%clk 0:00:05.4]}
41... Be6 {[%clk 0:01:44]} 42. Nd4 {[%clk 0:00:02.8]} 42... a2 {[%clk
0:01:44.9]} 43. Nxe6 {[%clk 0:00:03.4]} 43... a1=Q+ {[%clk 0:01:45.4]} 0-1

[Event "*** Titled Tuesday 3|2 Blitz"]
[Site "Chess.com"]
[Date "2016.01.05"]
[Round "8"]
[White "Rating-Schmating"]
[Black "oggy1984"]
[Result "1-0"]
[WhiteElo "2137"]
[BlackElo "2156"]
[TimeControl "180+2"]
[EndTime "12:38:43 PST"]
[Termination "Rating-Schmating won by resignation"]

1. e4 {[%clk 0:03:01.9]} 1... c6 {[%clk 0:03:00.3]} 2. d4 {[%clk 0:03:02.1]}
2... d5 {[%clk 0:03:00.5]} 3. exd5 {[%clk 0:03:01.8]} 3... cxd5 {[%clk
0:03:00.8]} 4. Bd3 {[%clk 0:03:03]} 4... Nf6 {[%clk 0:03:00.4]} 5. Ne2 {[%clk
0:03:04.2]} 5... Nc6 {[%clk 0:03:00.2]} 6. Bg5 {[%clk 0:03:03.4]} 6... Bg4
{[%clk 0:02:52]} 7. f3 {[%clk 0:03:03.1]} 7... Bh5 {[%clk 0:02:52.1]} 8. O-O
{[%clk 0:03:03.3]} 8... e6 {[%clk 0:02:51.6]} 9. c3 {[%clk 0:03:03.3]} 9... Bd6
{[%clk 0:02:50.7]} 10. Qc2 {[%clk 0:02:50]} 10... Qc7 {[%clk 0:02:49.2]} 11. g3
{[%clk 0:02:42]} 11... Bg6 {[%clk 0:02:48.8]} 12. Bf4 {[%clk 0:02:37.1]} 12...
e5 {[%clk 0:02:32.7]} 13. dxe5 {[%clk 0:02:35.6]} 13... Nxe5 {[%clk 0:02:33.2]}
14. Bxg6 {[%clk 0:02:33.5]} 14... hxg6 {[%clk 0:02:33]} 15. Nd2 {[%clk
0:02:20.6]} 15... O-O-O {[%clk 0:02:17.2]} 16. Nd4 {[%clk 0:02:16.4]} 16... Nc4
{[%clk 0:01:55.3]} 17. Bxd6 {[%clk 0:01:51.1]} 17... Qxd6 {[%clk 0:01:55.6]} 18.
Nxc4 {[%clk 0:01:50.5]} 18... dxc4 {[%clk 0:01:55.5]} 19. Rad1 {[%clk
0:01:48.6]} 19... Nd5 {[%clk 0:01:52.3]} 20. Rfe1 {[%clk 0:01:36.8]} 20... Rh5
{[%clk 0:01:45.2]} 21. Qa4 {[%clk 0:01:31.1]} 21... Qc5 {[%clk 0:01:38.5]} 22.
Qb5 {[%clk 0:01:24.1]} 22... Qxb5 {[%clk 0:01:20.2]} 23. Nxb5 {[%clk 0:01:24.7]}
23... a6 {[%clk 0:01:19.6]} 24. Nd4 {[%clk 0:01:22.3]} 24... Rdh8 {[%clk
0:01:16.2]} 25. Rd2 {[%clk 0:01:21.7]} 25... Kc7 {[%clk 0:01:09.7]} 26. Nc2
{[%clk 0:01:21.3]} 26... Kc6 {[%clk 0:01:07.2]} 27. Re4 {[%clk 0:01:17.2]} 27...
b5 {[%clk 0:01:05.4]} 28. Red4 {[%clk 0:01:14.6]} 28... a5 {[%clk 0:00:51.6]}
29. a4 {[%clk 0:01:12.5]} 29... Nc7 {[%clk 0:00:48.3]} 30. Rd6+ {[%clk 0:01:12]}
30... Kc5 {[%clk 0:00:48.8]} 31. Rd7 {[%clk 0:01:12.7]} 31... Nd5 {[%clk
0:00:44.1]} 32. axb5 {[%clk 0:01:06.2]} 32... Rf5 {[%clk 0:00:39.9]} 33. f4
{[%clk 0:01:01.2]} 33... g5 {[%clk 0:00:40.1]} 34. Nd4 {[%clk 0:00:50.8]} 34...
Rf6 {[%clk 0:00:37.8]} 35. fxg5 {[%clk 0:00:43.9]} 35... Rg6 {[%clk 0:00:36.1]}
36. Nf5 {[%clk 0:00:42.8]} 36... Nb6 {[%clk 0:00:33.8]} 37. Rxf7 {[%clk
0:00:29.2]} 37... Kxb5 {[%clk 0:00:34.1]} 38. h4 {[%clk 0:00:26.2]} 38... Re6
{[%clk 0:00:31.7]} 39. Nd4+ {[%clk 0:00:27.1]} 1-0

[Event "*** Titled Tuesday 3|2 Blitz"]
[Site "Chess.com"]
[Date "2016.01.05"]
[Round "8"]
[White "APL2001"]
[Black "BIG_Pirate"]
[Result "1/2-1/2"]
[WhiteElo "2022"]
[BlackElo "2205"]
[TimeControl "180+2"]
[EndTime "12:38:44 PST"]
[Termination "Game drawn by agreement"]

1. e4 {[%clk 0:03:01.9]} 1... d5 {[%clk 0:03:01.1]} 2. exd5 {[%clk 0:03:02.3]}
2... Qxd5 {[%clk 0:03:03]} 3. Nc3 {[%clk 0:03:03.3]} 3... Qa5 {[%clk 0:03:03.6]}
4. d4 {[%clk 0:03:04.3]} 4... Nf6 {[%clk 0:03:04.4]} 5. Nf3 {[%clk 0:03:05.4]}
5... Bg4 {[%clk 0:03:05.2]} 6. Bc4 {[%clk 0:03:05.6]} 6... Nc6 {[%clk
0:03:04.6]} 7. Be3 {[%clk 0:03:02.8]} 7... O-O-O {[%clk 0:03:05]} 8. h3 {[%clk
0:02:53.1]} 8... Bxf3 {[%clk 0:03:04.7]} 9. Qxf3 {[%clk 0:02:53.4]} 9... Nxd4
{[%clk 0:03:05.5]} 10. Bxd4 {[%clk 0:02:52.1]} 10... Rxd4 {[%clk 0:03:06.4]} 11.
Bxf7 {[%clk 0:02:51.5]} 11... Re4+ {[%clk 0:03:07.5]} 12. Kf1 {[%clk 0:02:43.5]}
12... Rd4 {[%clk 0:03:02]} 13. Be6+ {[%clk 0:02:41.7]} 13... Kb8 {[%clk
0:03:02.5]} 14. Rd1 {[%clk 0:02:38.9]} 14... Qa6+ {[%clk 0:02:59.5]} 15. Qe2
{[%clk 0:02:32.9]} 15... Rxd1+ {[%clk 0:02:59.6]} 16. Nxd1 {[%clk 0:02:33.7]}
16... Qd6 {[%clk 0:02:57.7]} 17. g3 {[%clk 0:02:16.2]} 17... g6 {[%clk
0:02:57.1]} 18. Kg2 {[%clk 0:02:14]} 18... Bh6 {[%clk 0:02:57.5]} 19. Nc3 {[%clk
0:02:09.5]} 19... Qc6+ {[%clk 0:02:54.7]} 20. f3 {[%clk 0:02:08.3]} 20... Rd8
{[%clk 0:02:52.2]} 21. Rd1 {[%clk 0:02:08.5]} 21... Rd6 {[%clk 0:02:39.5]} 22.
Bb3 {[%clk 0:01:53.2]} 22... Qd7 {[%clk 0:02:18.7]} 23. Rxd6 {[%clk 0:01:38.7]}
23... cxd6 {[%clk 0:02:19.2]} 24. Qe6 {[%clk 0:01:31.7]} 24... Qxe6 {[%clk
0:02:17.2]} 25. Bxe6 {[%clk 0:01:32.4]} 25... Bg7 {[%clk 0:02:14.7]} 26. f4
{[%clk 0:01:23.1]} 26... Ne8 {[%clk 0:02:15.1]} 27. Nd5 {[%clk 0:01:15]} 27...
Bxb2 {[%clk 0:02:11.8]} 28. Nxe7 {[%clk 0:01:15.8]} 28... Kc7 {[%clk 0:02:01.1]}
29. Bg8 {[%clk 0:01:16.5]} 29... Kd8 {[%clk 0:02:02.1]} 30. Nd5 {[%clk
0:01:12.9]} 30... h6 {[%clk 0:02:02.8]} 31. h4 {[%clk 0:01:02.8]} 31... Nf6
{[%clk 0:01:38.8]} 32. Nxf6 {[%clk 0:01:00.1]} 32... Bxf6 {[%clk 0:01:40.7]} 33.
Bf7 {[%clk 0:01:00.7]} 33... g5 {[%clk 0:01:42.1]} 34. fxg5 {[%clk 0:01:00.5]}
34... hxg5 {[%clk 0:01:42.9]} 35. h5 {[%clk 0:01:01.9]} 35... Ke7 {[%clk
0:01:42.7]} 36. Bd5 {[%clk 0:01:02.9]} 36... b6 {[%clk 0:01:38]} 37. Kf3 {[%clk
0:01:04]} 37... Be5 {[%clk 0:01:30.6]} 38. Kg4 {[%clk 0:00:58.7]} 38... Kf6
{[%clk 0:01:31.6]} 39. Be4 {[%clk 0:00:58.9]} 39... Kg7 {[%clk 0:01:22.3]} 40.
Kxg5 {[%clk 0:00:51.5]} 40... Bxg3 {[%clk 0:01:22.8]} 41. h6+ {[%clk 0:00:51.9]}
41... Kh8 {[%clk 0:01:17.6]} 42. h7 {[%clk 0:00:52.3]} 42... a5 {[%clk
0:01:16.2]} 43. Kf5 {[%clk 0:00:42.1]} 43... Bf2 {[%clk 0:01:14.4]} 44. Ke6
{[%clk 0:00:41.7]} 44... Bc5 {[%clk 0:01:14.6]} 45. c4 {[%clk 0:00:42.2]} 45...
Kg7 {[%clk 0:01:15.7]} 1/2-1/2

[Event "*** Titled Tuesday 3|2 Blitz"]
[Site "Chess.com"]
[Date "2016.01.05"]
[Round "8"]
[White "LyonBeast"]
[Black "Fandorine"]
[Result "1-0"]
[WhiteElo "2779"]
[BlackElo "2542"]
[TimeControl "180+2"]
[EndTime "12:38:57 PST"]
[Termination "LyonBeast won by resignation"]

1. e4 {[%clk 0:03:01.9]} 1... c6 {[%clk 0:02:46.5]} 2. d4 {[%clk 0:02:59.3]}
2... d5 {[%clk 0:02:48.1]} 3. e5 {[%clk 0:03:00.1]} 3... c5 {[%clk 0:02:49.5]}
4. Nf3 {[%clk 0:03:00.2]} 4... Nc6 {[%clk 0:02:48.3]} 5. dxc5 {[%clk 0:02:57.2]}
5... Bg4 {[%clk 0:02:49]} 6. Bb5 {[%clk 0:02:56.8]} 6... Qa5+ {[%clk 0:02:48.9]}
7. Nc3 {[%clk 0:02:56.9]} 7... e6 {[%clk 0:02:49.8]} 8. Be3 {[%clk 0:02:54.7]}
8... Ne7 {[%clk 0:02:47.4]} 9. a3 {[%clk 0:02:55.4]} 9... O-O-O {[%clk
0:02:47.7]} 10. b4 {[%clk 0:02:56.3]} 10... Bxf3 {[%clk 0:02:48.9]} 11. gxf3
{[%clk 0:02:15]} 11... Qc7 {[%clk 0:02:49.3]} 12. Bxc6 {[%clk 0:02:16.4]} 12...
Nxc6 {[%clk 0:02:49.6]} 13. Bd4 {[%clk 0:02:17.3]} 13... Kb8 {[%clk 0:02:45]}
14. Nb5 {[%clk 0:02:08.6]} 14... Qd7 {[%clk 0:02:45.5]} 15. Nd6 {[%clk
0:02:07.8]} 15... f6 {[%clk 0:02:46]} 16. f4 {[%clk 0:02:08]} 16... g5 {[%clk
0:02:47]} 17. b5 {[%clk 0:02:05.9]} 17... Nxd4 {[%clk 0:02:45.9]} 18. Qxd4
{[%clk 0:02:07.8]} 18... gxf4 {[%clk 0:02:47.2]} 19. c6 {[%clk 0:01:58.2]} 19...
fxe5 {[%clk 0:02:44.2]} 20. cxd7 {[%clk 0:01:58.8]} 20... exd4 {[%clk 0:02:43]}
21. Nf7 {[%clk 0:02:00.3]} 21... Bg7 {[%clk 0:02:33.7]} 22. Rg1 {[%clk
0:01:58.8]} 22... Bf6 {[%clk 0:02:33.8]} 23. Ke2 {[%clk 0:01:46.8]} 23... Kc7
{[%clk 0:02:34.2]} 24. Nxh8 {[%clk 0:01:37.3]} 24... Rxh8 {[%clk 0:02:20.2]} 25.
Rab1 {[%clk 0:01:35.8]} 25... Kxd7 {[%clk 0:02:18.3]} 26. Rb3 {[%clk 0:01:37.3]}
26... Rc8 {[%clk 0:02:17]} 27. Kd2 {[%clk 0:01:38.1]} 27... Kd6 {[%clk 0:01:54]}
28. Rh3 {[%clk 0:01:37.6]} 28... Rc7 {[%clk 0:01:51.1]} 29. Rh6 {[%clk
0:01:38.5]} 29... Rf7 {[%clk 0:01:52.5]} 30. Kd3 {[%clk 0:01:35.5]} 30... e5
{[%clk 0:01:52]} 31. f3 {[%clk 0:01:36.3]} 31... Ke6 {[%clk 0:01:51.5]} 32. Rg8
{[%clk 0:01:35.7]} 32... Kf5 {[%clk 0:01:39.9]} 33. Rh5+ {[%clk 0:01:35.5]}
33... Ke6 {[%clk 0:01:40.8]} 34. Re8+ {[%clk 0:01:36.7]} 34... Kd6 {[%clk
0:01:33.1]} 35. Rf5 {[%clk 0:01:35.6]} 35... b6 {[%clk 0:01:19.4]} 36. Rexe5
{[%clk 0:01:30.9]} 36... Rc7 {[%clk 0:01:19.8]} 37. Re8 {[%clk 0:01:14.8]} 37...
Bg7 {[%clk 0:01:17.8]} 38. Rd8+ {[%clk 0:01:10.5]} 38... Ke6 {[%clk 0:01:18.3]}
39. Rfxd5 {[%clk 0:01:12.4]} 39... Rc3+ {[%clk 0:01:14.3]} 40. Ke4 {[%clk
0:01:13.4]} 40... Re3+ {[%clk 0:00:57.5]} 41. Kxf4 {[%clk 0:01:13.4]} 41... Bf6
{[%clk 0:00:53.8]} 42. R8d6+ {[%clk 0:01:00.8]} 42... Ke7 {[%clk 0:00:51]} 43.
Rd7+ {[%clk 0:01:02]} 43... Ke8 {[%clk 0:00:45.1]} 44. Rxa7 {[%clk 0:00:59.9]}
44... h6 {[%clk 0:00:36.9]} 45. Kf5 {[%clk 0:01:00.5]} 45... Be7 {[%clk
0:00:31.3]} 46. Re5 {[%clk 0:00:59.6]} 46... Rxf3+ {[%clk 0:00:31.9]} 47. Kg6
{[%clk 0:00:58.4]} 47... Rf6+ {[%clk 0:00:32.5]} 48. Kh5 {[%clk 0:00:58.4]}
48... Rf7 {[%clk 0:00:33.8]} 49. Kxh6 {[%clk 0:00:56.6]} 49... Kf8 {[%clk
0:00:34.4]} 50. Raxe7 {[%clk 0:00:55.9]} 50... Rxe7 {[%clk 0:00:35.4]} 51. Rxe7
{[%clk 0:00:56.9]} 51... Kxe7 {[%clk 0:00:37.1]} 52. Kg5 {[%clk 0:00:58.1]}
52... d3 {[%clk 0:00:38.8]} 53. cxd3 {[%clk 0:00:58.5]} 1-0

[Event "*** Titled Tuesday 3|2 Blitz"]
[Site "Chess.com"]
[Date "2016.01.05"]
[Round "8"]
[White "Gabrielian_Artur"]
[Black "Danirod"]
[Result "1-0"]
[WhiteElo "2479"]
[BlackElo "2388"]
[TimeControl "180+2"]
[EndTime "12:39:33 PST"]
[Termination "Gabrielian_Artur won by resignation"]

1. e4 {[%clk 0:03:01.9]} 1... c5 {[%clk 0:03:00.1]} 2. Nf3 {[%clk 0:03:02.5]}
2... g6 {[%clk 0:03:01.5]} 3. c3 {[%clk 0:03:01.9]} 3... Bg7 {[%clk 0:03:02.3]}
4. d4 {[%clk 0:03:02.6]} 4... cxd4 {[%clk 0:03:03.8]} 5. cxd4 {[%clk 0:03:03.2]}
5... d5 {[%clk 0:03:04.9]} 6. e5 {[%clk 0:03:04.5]} 6... a6 {[%clk 0:03:06.3]}
7. Nc3 {[%clk 0:03:05.3]} 7... Nc6 {[%clk 0:03:06.4]} 8. h3 {[%clk 0:03:06]}
8... f6 {[%clk 0:03:05.7]} 9. exf6 {[%clk 0:03:06.7]} 9... Nxf6 {[%clk
0:03:06.9]} 10. Bd3 {[%clk 0:03:07.2]} 10... O-O {[%clk 0:03:08.1]} 11. O-O
{[%clk 0:03:08.2]} 11... Nh5 {[%clk 0:02:59.7]} 12. Be3 {[%clk 0:03:08.2]} 12...
Nf4 {[%clk 0:02:58.3]} 13. Bxf4 {[%clk 0:03:02.8]} 13... Rxf4 {[%clk 0:02:58.8]}
14. Ne2 {[%clk 0:02:29.5]} 14... Rxf3 {[%clk 0:02:38]} 15. gxf3 {[%clk 0:02:30]}
15... Bxh3 {[%clk 0:02:39.4]} 16. Re1 {[%clk 0:02:30.9]} 16... Qd6 {[%clk
0:02:22.2]} 17. Qd2 {[%clk 0:02:21.4]} 17... Rf8 {[%clk 0:02:07.8]} 18. Qe3
{[%clk 0:02:21.7]} 18... Qf6 {[%clk 0:01:29.9]} 19. f4 {[%clk 0:02:09.4]} 19...
Bg4 {[%clk 0:01:27.9]} 20. f3 {[%clk 0:01:56.8]} 20... Bh3 {[%clk 0:01:18.6]}
21. Rac1 {[%clk 0:01:49.5]} 21... Bd7 {[%clk 0:00:49.5]} 22. Rc5 {[%clk
0:01:43.6]} 22... Nxd4 {[%clk 0:00:48.5]} 23. Rxd5 {[%clk 0:01:40.3]} 23...
Nxe2+ {[%clk 0:00:46.7]} 24. Rxe2 {[%clk 0:01:41.5]} 24... Bc6 {[%clk 0:00:48]}
25. Re5 {[%clk 0:01:08.6]} 25... Qd6 {[%clk 0:00:26.2]} 26. Bc4+ {[%clk
0:00:38.9]} 26... Kh8 {[%clk 0:00:26]} 27. Rd2 {[%clk 0:00:27.6]} 27... Qb4
{[%clk 0:00:16.5]} 28. Rc5 {[%clk 0:00:28.7]} 28... Bb5 {[%clk 0:00:11.1]} 29.
a3 {[%clk 0:00:25.1]} 29... Qa4 {[%clk 0:00:10.8]} 30. Bxb5 {[%clk 0:00:23.9]}
30... axb5 {[%clk 0:00:11.8]} 31. b4 {[%clk 0:00:22.6]} 31... Qa7 {[%clk
0:00:12.3]} 32. Kg2 {[%clk 0:00:20.9]} 32... Bf6 {[%clk 0:00:11.6]} 33. Rd3
{[%clk 0:00:16.4]} 33... Qb8 {[%clk 0:00:12.3]} 34. Rcd5 {[%clk 0:00:16.3]}
34... Qc7 {[%clk 0:00:13.2]} 35. Rxb5 {[%clk 0:00:16.8]} 35... Qc2+ {[%clk
0:00:14.1]} 36. Qd2 {[%clk 0:00:18.1]} 36... Qb1 {[%clk 0:00:15]} 37. Rbd5
{[%clk 0:00:17.5]} 37... Kg7 {[%clk 0:00:15.7]} 38. f5 {[%clk 0:00:17.4]} 38...
gxf5 {[%clk 0:00:16.4]} 39. Rxf5 {[%clk 0:00:18.1]} 39... Qa1 {[%clk 0:00:17.1]}
40. Rf4 {[%clk 0:00:18.5]} 40... Kh8 {[%clk 0:00:18.3]} 41. Rg4 {[%clk
0:00:19.7]} 41... Qe5 {[%clk 0:00:18.8]} 42. Rd8 {[%clk 0:00:19.8]} 42... Bg7
{[%clk 0:00:14.8]} 43. Rxf8+ {[%clk 0:00:20.7]} 43... Bxf8 {[%clk 0:00:16.4]}
44. Qd4 {[%clk 0:00:21.9]} 44... Qxd4 {[%clk 0:00:13.8]} 45. Rxd4 {[%clk
0:00:22.9]} 45... Kg7 {[%clk 0:00:15.5]} 46. Rd5 {[%clk 0:00:23.6]} 46... Kf7
{[%clk 0:00:16.8]} 47. Rb5 {[%clk 0:00:24.7]} 1-0

[Event "*** Titled Tuesday 3|2 Blitz"]
[Site "Chess.com"]
[Date "2016.01.05"]
[Round "8"]
[White "volodja49"]
[Black "AdrianaNikolova"]
[Result "1-0"]
[WhiteElo "2301"]
[BlackElo "2179"]
[TimeControl "180+2"]
[EndTime "12:39:41 PST"]
[Termination "volodja49 won by resignation"]

1. d4 {[%clk 0:03:01.9]} 1... d5 {[%clk 0:02:57.8]} 2. c4 {[%clk 0:02:56.1]}
2... c6 {[%clk 0:02:58.9]} 3. Nc3 {[%clk 0:02:57.1]} 3... Nf6 {[%clk 0:03:00.1]}
4. cxd5 {[%clk 0:02:51.1]} 4... cxd5 {[%clk 0:03:00.8]} 5. Bf4 {[%clk
0:02:52.1]} 5... Nc6 {[%clk 0:03:01.7]} 6. e3 {[%clk 0:02:52.3]} 6... a6 {[%clk
0:03:03.3]} 7. Rc1 {[%clk 0:02:52.9]} 7... Bg4 {[%clk 0:03:02]} 8. Qb3 {[%clk
0:02:45.7]} 8... Na5 {[%clk 0:03:01.2]} 9. Qa4+ {[%clk 0:02:21.3]} 9... Bd7
{[%clk 0:03:01.7]} 10. Qd1 {[%clk 0:02:16.9]} 10... e6 {[%clk 0:03:01.9]} 11.
Nf3 {[%clk 0:02:16.1]} 11... b5 {[%clk 0:03:00]} 12. Bd3 {[%clk 0:02:14.7]}
12... Bb4 {[%clk 0:03:00.8]} 13. O-O {[%clk 0:02:14.7]} 13... O-O {[%clk
0:03:01.8]} 14. a3 {[%clk 0:02:09.3]} 14... Bxc3 {[%clk 0:03:02.2]} 15. Rxc3
{[%clk 0:02:11.2]} 15... Nc4 {[%clk 0:03:02]} 16. Qe2 {[%clk 0:02:11.1]} 16...
Rc8 {[%clk 0:03:00.7]} 17. Rfc1 {[%clk 0:02:11.2]} 17... Ne4 {[%clk 0:02:59.2]}
18. Bxe4 {[%clk 0:01:59.3]} 18... dxe4 {[%clk 0:03:01.1]} 19. Ne5 {[%clk
0:02:00.4]} 19... Nxe5 {[%clk 0:02:55.3]} 20. Bxe5 {[%clk 0:01:58.8]} 20... Rxc3
{[%clk 0:02:49.5]} 21. Rxc3 {[%clk 0:02:00.7]} 21... Qb6 {[%clk 0:02:47.9]} 22.
Qc2 {[%clk 0:01:58.1]} 22... f6 {[%clk 0:02:43.3]} 23. Bc7 {[%clk 0:01:48.3]}
23... Qb7 {[%clk 0:02:40.1]} 24. Bd6 {[%clk 0:01:49.6]} 24... Rc8 {[%clk
0:02:40.7]} 25. h3 {[%clk 0:01:34]} 25... Rxc3 {[%clk 0:02:40.3]} 26. Qxc3
{[%clk 0:01:35.1]} 26... Bc6 {[%clk 0:02:41]} 27. Qc5 {[%clk 0:01:31.9]} 27...
Kf7 {[%clk 0:02:40.7]} 28. g4 {[%clk 0:01:28.4]} 28... a5 {[%clk 0:02:38.3]} 29.
Qh5+ {[%clk 0:01:17.1]} 29... Kg8 {[%clk 0:02:33.2]} 30. g5 {[%clk 0:01:17.3]}
30... Qd7 {[%clk 0:02:17]} 31. Bc5 {[%clk 0:01:12.7]} 31... Qd5 {[%clk
0:02:10.6]} 32. h4 {[%clk 0:01:10.1]} 32... Qf5 {[%clk 0:01:59.6]} 33. Kg2
{[%clk 0:01:04.6]} 33... h6 {[%clk 0:01:49.1]} 34. Kg3 {[%clk 0:01:01.2]} 34...
fxg5 {[%clk 0:01:01.2]} 35. hxg5 {[%clk 0:01:03.1]} 35... e5 {[%clk 0:00:54.4]}
36. Qg4 {[%clk 0:00:59.5]} 36... Qxg5 {[%clk 0:00:24.5]} 37. Qxg5 {[%clk
0:00:57.1]} 37... hxg5 {[%clk 0:00:26.4]} 38. dxe5 {[%clk 0:00:58.4]} 38... Kf7
{[%clk 0:00:19.8]} 39. Kg4 {[%clk 0:00:58.5]} 39... Ke6 {[%clk 0:00:19]} 40.
Kxg5 {[%clk 0:00:59.1]} 40... Kxe5 {[%clk 0:00:18.8]} 41. Bd4+ {[%clk
0:01:00.5]} 41... Kd5 {[%clk 0:00:19.5]} 42. Bxg7 {[%clk 0:01:02.4]} 42... Kc4
{[%clk 0:00:21]} 43. Kf6 {[%clk 0:00:59.6]} 43... Kd3 {[%clk 0:00:19]} 44. Ke6
{[%clk 0:00:59.4]} 44... Ke2 {[%clk 0:00:20]} 45. Kd6 {[%clk 0:01:00.6]} 45...
Ba8 {[%clk 0:00:20.7]} 46. Kc5 {[%clk 0:00:58]} 46... b4 {[%clk 0:00:17.7]} 47.
axb4 {[%clk 0:00:58.1]} 47... axb4 {[%clk 0:00:19.6]} 48. Kxb4 {[%clk
0:00:59.4]} 48... Kxf2 {[%clk 0:00:21.5]} 49. Bd4 {[%clk 0:00:59.1]} 49... Kf3
{[%clk 0:00:23.1]} 50. Kc5 {[%clk 0:01:00.5]} 50... Kg4 {[%clk 0:00:25]} 51. b4
{[%clk 0:00:57.2]} 51... Kf5 {[%clk 0:00:26.9]} 52. Kd6 {[%clk 0:00:58.7]} 52...
Kg6 {[%clk 0:00:24.8]} 53. b5 {[%clk 0:00:59.7]} 53... Kf7 {[%clk 0:00:26.7]}
54. b6 {[%clk 0:01:01]} 54... Ke8 {[%clk 0:00:26.6]} 55. Kc7 {[%clk 0:01:02.9]}
55... Ke7 {[%clk 0:00:25.3]} 56. b7 {[%clk 0:01:04.8]} 56... Bxb7 {[%clk
0:00:26.8]} 57. Kxb7 {[%clk 0:01:06.4]} 57... Kd6 {[%clk 0:00:28.6]} 58. Kb6
{[%clk 0:01:07.5]} 58... Kd5 {[%clk 0:00:30]} 59. Kb5 {[%clk 0:01:09.2]} 59...
Kd6 {[%clk 0:00:31.2]} 60. Kc4 {[%clk 0:01:09.5]} 60... Kc6 {[%clk 0:00:32.2]}
61. Bc5 {[%clk 0:01:10.2]} 61... Kd7 {[%clk 0:00:33.1]} 62. Kd5 {[%clk
0:01:12.1]} 62... Kc7 {[%clk 0:00:33.8]} 63. Kxe4 {[%clk 0:01:12.9]} 63... Kc6
{[%clk 0:00:35.7]} 64. Kd4 {[%clk 0:01:13.8]} 1-0